[Event "*** Titled Tuesday Blitz"]
[Site "Chess.com"]
[Date "2020.12.01"]
[Round "6"]
[White "tolimachess"]
[Black "Bwert2602"]
[Result "1/2-1/2"]
[WhiteElo "2478"]
[BlackElo "2214"]
[TimeControl "180+1"]
[EndTime "11:02:43 PST"]
[Termination "Game drawn by repetition"]

1. e4 {[%clk 0:03:00.9]} 1... c5 {[%clk 0:02:58.8]} 2. Nf3 {[%clk 0:03:00.1]}
2... Nc6 {[%clk 0:02:59.7]} 3. Bb5 {[%clk 0:02:58.9]} 3... e5 {[%clk 0:02:57.7]}
4. O-O {[%clk 0:02:55.5]} 4... d6 {[%clk 0:02:57.8]} 5. c3 {[%clk 0:02:54.9]}
5... Bd7 {[%clk 0:02:57.9]} 6. d4 {[%clk 0:02:54.2]} 6... cxd4 {[%clk
0:02:57.9]} 7. cxd4 {[%clk 0:02:53.5]} 7... Nf6 {[%clk 0:02:56.4]} 8. Nc3 {[%clk
0:02:52.2]} 8... Nxd4 {[%clk 0:02:55.4]} 9. Nxd4 {[%clk 0:02:47.6]} 9... exd4
{[%clk 0:02:56.3]} 10. Qxd4 {[%clk 0:02:46.1]} 10... Bxb5 {[%clk 0:02:54.9]} 11.
Nxb5 {[%clk 0:02:44.9]} 11... a6 {[%clk 0:02:55.8]} 12. Nc3 {[%clk 0:02:38.4]}
12... h6 {[%clk 0:02:56.2]} 13. Bf4 {[%clk 0:02:38.2]} 13... Be7 {[%clk
0:02:56.2]} 14. Rad1 {[%clk 0:02:38.1]} 14... Qa5 {[%clk 0:02:51]} 15. Bxd6
{[%clk 0:02:34.8]} 15... Rd8 {[%clk 0:02:48.2]} 16. e5 {[%clk 0:02:34.7]} 16...
Bxd6 {[%clk 0:02:47.2]} 17. exd6 {[%clk 0:02:28.7]} 17... O-O {[%clk 0:02:46.7]}
18. Rfe1 {[%clk 0:02:16.8]} 18... Rd7 {[%clk 0:02:40.2]} 19. Re7 {[%clk
0:02:09.1]} 19... Rfd8 {[%clk 0:02:40.2]} 20. Rxd7 {[%clk 0:02:04.5]} 20... Rxd7
{[%clk 0:02:41.1]} 21. b4 {[%clk 0:01:38.9]} 21... Qa3 {[%clk 0:02:34]} 22. h3
{[%clk 0:01:34.2]} 22... Qb2 {[%clk 0:02:28]} 23. Nd5 {[%clk 0:01:01.8]} 23...
Qxd4 {[%clk 0:02:18.3]} 24. Rxd4 {[%clk 0:01:02.7]} 24... Ne8 {[%clk 0:02:12.3]}
25. Ne7+ {[%clk 0:00:57.3]} 25... Kf8 {[%clk 0:02:10.9]} 26. Nc8 {[%clk
0:00:56.8]} 26... Rd8 {[%clk 0:01:55.8]} 27. d7 {[%clk 0:00:56]} 27... Nf6
{[%clk 0:01:56.1]} 28. Nb6 {[%clk 0:00:55.9]} 28... Ke7 {[%clk 0:01:55.6]} 29.
Nc8+ {[%clk 0:00:52.8]} 29... Kf8 {[%clk 0:01:54.6]} 30. Nb6 {[%clk 0:00:40.5]}
30... Ke7 {[%clk 0:01:54.4]} 31. Nc8+ {[%clk 0:00:35.7]} 31... Kf8 {[%clk
0:01:54]} 1/2-1/2

[Event "*** Titled Tuesday Blitz"]
[Site "Chess.com"]
[Date "2020.12.01"]
[Round "6"]
[White "FearNoEvil12"]
[Black "Panterov"]
[Result "1-0"]
[WhiteElo "2166"]
[BlackElo "2269"]
[TimeControl "180+1"]
[EndTime "11:02:44 PST"]
[Termination "FearNoEvil12 won by resignation"]

1. e4 {[%clk 0:03:00.9]} 1... e6 {[%clk 0:03:00.3]} 2. d4 {[%clk 0:03:00]} 2...
d5 {[%clk 0:03:01.2]} 3. Nc3 {[%clk 0:02:59.8]} 3... Bb4 {[%clk 0:03:00.6]} 4.
Qd3 {[%clk 0:02:58.9]} 4... Nf6 {[%clk 0:02:57.4]} 5. e5 {[%clk 0:02:57.9]} 5...
Ne4 {[%clk 0:02:57.8]} 6. a3 {[%clk 0:02:57]} 6... Bxc3+ {[%clk 0:02:57.7]} 7.
bxc3 {[%clk 0:02:56.2]} 7... c5 {[%clk 0:02:54.3]} 8. Qe3 {[%clk 0:02:55.3]}
8... cxd4 {[%clk 0:02:53.3]} 9. cxd4 {[%clk 0:02:53.9]} 9... Qa5+ {[%clk
0:02:53.3]} 10. Bd2 {[%clk 0:02:52.4]} 10... Nxd2 {[%clk 0:02:52.7]} 11. Qxd2
{[%clk 0:02:51.5]} 11... Qb6 {[%clk 0:02:41]} 12. c3 {[%clk 0:02:49.8]} 12...
Nc6 {[%clk 0:02:41.2]} 13. Nf3 {[%clk 0:02:49.2]} 13... O-O {[%clk 0:02:41.4]}
14. Bd3 {[%clk 0:02:48.7]} 14... f5 {[%clk 0:02:41.7]} 15. exf6 {[%clk
0:02:46.3]} 15... Rxf6 {[%clk 0:02:41.5]} 16. h4 {[%clk 0:02:44.5]} 16... Bd7
{[%clk 0:02:41.4]} 17. O-O {[%clk 0:02:38.3]} 17... Raf8 {[%clk 0:02:41.1]} 18.
Ng5 {[%clk 0:02:35.2]} 18... g6 {[%clk 0:02:30.6]} 19. Nxh7 {[%clk 0:02:30.3]}
19... Kxh7 {[%clk 0:02:28.6]} 20. h5 {[%clk 0:02:30.7]} 20... Kg7 {[%clk
0:02:19.3]} 21. hxg6 {[%clk 0:02:29.7]} 21... e5 {[%clk 0:02:08.9]} 22. dxe5
{[%clk 0:02:06.2]} 22... Nxe5 {[%clk 0:02:08.9]} 23. Bc2 {[%clk 0:02:05.1]}
23... Ng4 {[%clk 0:01:59.1]} 24. Qxd5 {[%clk 0:01:56.8]} 24... Bc6 {[%clk
0:01:52.5]} 25. Qh5 {[%clk 0:01:50.7]} 25... Nh6 {[%clk 0:01:39.5]} 26. Qe5
{[%clk 0:01:33.9]} 26... Re8 {[%clk 0:01:34.6]} 27. Qg3 {[%clk 0:01:24.5]} 27...
Re2 {[%clk 0:01:32.5]} 28. Bd3 {[%clk 0:01:23.2]} 28... Rd2 {[%clk 0:01:30.2]}
29. Rae1 {[%clk 0:01:21.3]} 29... Qc5 {[%clk 0:01:19.8]} 30. Qc7+ {[%clk
0:01:15.2]} 30... Kg8 {[%clk 0:01:13.2]} 31. Qh7+ {[%clk 0:01:12.6]} 1-0

[Event "*** Titled Tuesday Blitz"]
[Site "Chess.com"]
[Date "2020.12.01"]
[Round "6"]
[White "Malev212"]
[Black "frederiksvane"]
[Result "1-0"]
[WhiteElo "2567"]
[BlackElo "2704"]
[TimeControl "180+1"]
[EndTime "11:02:48 PST"]
[Termination "Malev212 won by resignation"]

1. e4 {[%clk 0:02:55.3]} 1... c5 {[%clk 0:02:59.9]} 2. Nf3 {[%clk 0:02:53.7]}
2... d6 {[%clk 0:02:52.4]} 3. d4 {[%clk 0:02:52.4]} 3... cxd4 {[%clk 0:02:53.3]}
4. Nxd4 {[%clk 0:02:51.8]} 4... Nf6 {[%clk 0:02:54]} 5. Nc3 {[%clk 0:02:51.6]}
5... Nc6 {[%clk 0:02:54.4]} 6. Bc4 {[%clk 0:02:50]} 6... e6 {[%clk 0:02:51.8]}
7. Be3 {[%clk 0:02:48.6]} 7... Be7 {[%clk 0:02:51.4]} 8. Qe2 {[%clk 0:02:46.1]}
8... O-O {[%clk 0:02:47.5]} 9. O-O-O {[%clk 0:02:45]} 9... Bd7 {[%clk
0:02:35.3]} 10. Bb3 {[%clk 0:02:36.9]} 10... a6 {[%clk 0:02:27.2]} 11. f4 {[%clk
0:02:30.5]} 11... Qc7 {[%clk 0:02:22.2]} 12. g4 {[%clk 0:02:27.5]} 12... Nxd4
{[%clk 0:02:19.9]} 13. Rxd4 {[%clk 0:02:26.4]} 13... e5 {[%clk 0:02:19.3]} 14.
Rc4 {[%clk 0:02:23.6]} 14... Qa5 {[%clk 0:02:09.9]} 15. g5 {[%clk 0:02:20.9]}
15... Ng4 {[%clk 0:02:07.7]} 16. Nd5 {[%clk 0:02:08]} 16... Bd8 {[%clk
0:02:01.3]} 17. Bd2 {[%clk 0:02:05]} 17... Qb5 {[%clk 0:01:53.3]} 18. a4 {[%clk
0:02:04.1]} 18... Qxc4 {[%clk 0:01:44.9]} 19. Bxc4 {[%clk 0:02:00.8]} 19... exf4
{[%clk 0:01:42.3]} 20. Bxf4 {[%clk 0:01:56.4]} 20... Ne5 {[%clk 0:01:42.4]} 21.
Bb3 {[%clk 0:01:55.1]} 21... b5 {[%clk 0:01:40]} 22. axb5 {[%clk 0:01:52]} 22...
Bxb5 {[%clk 0:01:40.9]} 23. Qg2 {[%clk 0:01:49.9]} 23... a5 {[%clk 0:01:36.8]}
24. h4 {[%clk 0:01:47.7]} 24... a4 {[%clk 0:01:36]} 25. Ba2 {[%clk 0:01:46.7]}
25... Rc8 {[%clk 0:01:33.9]} 26. Kb1 {[%clk 0:01:44.2]} 26... Re8 {[%clk
0:01:14.5]} 27. h5 {[%clk 0:01:37.8]} 27... Bc4 {[%clk 0:01:07.7]} 28. Nf6+
{[%clk 0:01:26.8]} 1-0

[Event "*** Titled Tuesday Blitz"]
[Site "Chess.com"]
[Date "2020.12.01"]
[Round "6"]
[White "csati17"]
[Black "Aleksandar-Topalov"]
[Result "1-0"]
[WhiteElo "2598"]
[BlackElo "2422"]
[TimeControl "180+1"]
[EndTime "11:02:49 PST"]
[Termination "csati17 won by resignation"]

1. c4 {[%clk 0:02:55.2]} 1... Nf6 {[%clk 0:02:59.6]} 2. Nc3 {[%clk 0:02:55.3]}
2... c5 {[%clk 0:02:59.6]} 3. g3 {[%clk 0:02:54.3]} 3... Nc6 {[%clk 0:02:59.9]}
4. Bg2 {[%clk 0:02:54.3]} 4... g6 {[%clk 0:03:00.3]} 5. e4 {[%clk 0:02:54.1]}
5... Bg7 {[%clk 0:02:59.8]} 6. Nge2 {[%clk 0:02:54.4]} 6... O-O {[%clk
0:02:59.9]} 7. O-O {[%clk 0:02:54.8]} 7... d6 {[%clk 0:03:00.4]} 8. d3 {[%clk
0:02:54.9]} 8... a6 {[%clk 0:03:00.7]} 9. Rb1 {[%clk 0:02:54.9]} 9... Rb8 {[%clk
0:02:59.6]} 10. a3 {[%clk 0:02:55.4]} 10... b5 {[%clk 0:02:59.6]} 11. cxb5
{[%clk 0:02:56.3]} 11... axb5 {[%clk 0:03:00]} 12. b4 {[%clk 0:02:57.2]} 12...
cxb4 {[%clk 0:03:00.4]} 13. axb4 {[%clk 0:02:58.1]} 13... Bd7 {[%clk 0:02:46.4]}
14. h3 {[%clk 0:02:55.3]} 14... e5 {[%clk 0:02:38.9]} 15. Be3 {[%clk 0:02:55.2]}
15... Ne8 {[%clk 0:02:21.3]} 16. Nd5 {[%clk 0:02:35.3]} 16... f5 {[%clk
0:02:14.4]} 17. Qd2 {[%clk 0:02:32.2]} 17... Nd4 {[%clk 0:02:00.1]} 18. Nxd4
{[%clk 0:02:27.4]} 18... exd4 {[%clk 0:01:59.8]} 19. Bg5 {[%clk 0:02:28.1]}
19... Nf6 {[%clk 0:01:58.4]} 20. Rbc1 {[%clk 0:01:49.1]} 20... Be6 {[%clk
0:01:56.8]} 21. exf5 {[%clk 0:01:44.1]} 21... Bxf5 {[%clk 0:01:52.2]} 22. Rfe1
{[%clk 0:01:41.1]} 22... Rf7 {[%clk 0:01:50.5]} 23. Qf4 {[%clk 0:01:34.5]} 23...
Nxd5 {[%clk 0:01:36.5]} 24. Bxd5 {[%clk 0:01:32.6]} 24... Be5 {[%clk 0:01:22.4]}
25. Qh4 {[%clk 0:01:24]} 25... Qf8 {[%clk 0:01:18.7]} 26. f4 {[%clk 0:01:21.6]}
1-0

[Event "*** Titled Tuesday Blitz"]
[Site "Chess.com"]
[Date "2020.12.01"]
[Round "6"]
[White "maximnovik"]
[Black "sopo-tereladze"]
[Result "1-0"]
[WhiteElo "2557"]
[BlackElo "2306"]
[TimeControl "180+1"]
[EndTime "11:02:58 PST"]
[Termination "maximnovik won on time"]

1. d4 {[%clk 0:03:00.9]} 1... Nf6 {[%clk 0:00:16.9]} 2. Bg5 {[%clk 0:02:59.4]}
2... e6 {[%clk 0:00:17.8]} 3. c3 {[%clk 0:02:58.7]} 3... Be7 {[%clk 0:00:18.7]}
4. Nd2 {[%clk 0:02:58.4]} 4... O-O {[%clk 0:00:19.6]} 5. e4 {[%clk 0:02:58.2]}
5... d5 {[%clk 0:00:20.5]} 6. e5 {[%clk 0:02:58.1]} 6... Nfd7 {[%clk 0:00:17.3]}
7. Bxe7 {[%clk 0:02:56.6]} 7... Qxe7 {[%clk 0:00:18.2]} 8. Ngf3 {[%clk
0:02:55.6]} 8... f5 {[%clk 0:00:17.9]} 9. Bd3 {[%clk 0:02:51.6]} 9... c5 {[%clk
0:00:17.4]} 10. O-O {[%clk 0:02:51.3]} 10... Nc6 {[%clk 0:00:16.5]} 11. a3
{[%clk 0:02:51.4]} 11... b6 {[%clk 0:00:16.5]} 12. b4 {[%clk 0:02:45.8]} 12...
Bb7 {[%clk 0:00:16.4]} 13. Qe2 {[%clk 0:02:43.7]} 13... c4 {[%clk 0:00:13.3]}
14. Bc2 {[%clk 0:02:43.1]} 14... Qf7 {[%clk 0:00:13.7]} 15. Ne1 {[%clk
0:02:38.9]} 15... h6 {[%clk 0:00:13.6]} 16. f4 {[%clk 0:02:38.1]} 16... Kh7
{[%clk 0:00:12.3]} 17. Kh1 {[%clk 0:02:37.1]} 17... g6 {[%clk 0:00:12.6]} 18. g3
{[%clk 0:02:36.9]} 18... Ne7 {[%clk 0:00:12.2]} 19. Ng2 {[%clk 0:02:37.2]} 19...
Rg8 {[%clk 0:00:11.9]} 20. Ne3 {[%clk 0:02:37.6]} 20... Rg7 {[%clk 0:00:11.9]}
21. a4 {[%clk 0:02:35.2]} 21... a6 {[%clk 0:00:09.4]} 22. Rg1 {[%clk 0:02:34.3]}
22... Rag8 {[%clk 0:00:08.3]} 23. Rg2 {[%clk 0:02:34.1]} 23... g5 {[%clk
0:00:08.4]} 24. fxg5 {[%clk 0:02:27.8]} 24... hxg5 {[%clk 0:00:07.1]} 25. g4
{[%clk 0:02:25.2]} 25... Kh8 {[%clk 0:00:03.8]} 26. gxf5 {[%clk 0:02:22.9]}
26... exf5 {[%clk 0:00:04.7]} 27. Nxf5 {[%clk 0:02:17.6]} 27... Nxf5 {[%clk
0:00:04.1]} 28. Rf1 {[%clk 0:02:16.8]} 28... Nxd4 {[%clk 0:00:01.7]} 29. cxd4
{[%clk 0:02:10.1]} 1-0

[Event "*** Titled Tuesday Blitz"]
[Site "Chess.com"]
[Date "2020.12.01"]
[Round "6"]
[White "Euwe1234"]
[Black "FMalexhdez"]
[Result "1-0"]
[WhiteElo "2555"]
[BlackElo "2301"]
[TimeControl "180+1"]
[EndTime "11:02:59 PST"]
[Termination "Euwe1234 won by resignation"]

1. e4 {[%clk 0:03:00.9]} 1... c5 {[%clk 0:02:59]} 2. Nf3 {[%clk 0:03:01.2]} 2...
d6 {[%clk 0:02:59.3]} 3. d4 {[%clk 0:03:01.6]} 3... cxd4 {[%clk 0:02:59.9]} 4.
Nxd4 {[%clk 0:03:01.8]} 4... Nf6 {[%clk 0:03:00.5]} 5. Nc3 {[%clk 0:03:00.8]}
5... a6 {[%clk 0:03:01.4]} 6. Bg5 {[%clk 0:02:58.4]} 6... e5 {[%clk 0:03:00.9]}
7. Nf3 {[%clk 0:02:57.1]} 7... Be7 {[%clk 0:02:58]} 8. Bxf6 {[%clk 0:02:56.1]}
8... Bxf6 {[%clk 0:02:56.8]} 9. Nd5 {[%clk 0:02:57]} 9... Be6 {[%clk 0:02:54.8]}
10. Bc4 {[%clk 0:02:56.5]} 10... Nd7 {[%clk 0:02:49.9]} 11. O-O {[%clk
0:02:55.1]} 11... Rc8 {[%clk 0:02:46.8]} 12. Bb3 {[%clk 0:02:46.8]} 12... Nc5
{[%clk 0:02:18]} 13. Re1 {[%clk 0:02:46.6]} 13... Nxb3 {[%clk 0:02:15.8]} 14.
axb3 {[%clk 0:02:47.5]} 14... Bg5 {[%clk 0:02:11.7]} 15. c4 {[%clk 0:02:45.9]}
15... Bh6 {[%clk 0:02:02.6]} 16. Qd3 {[%clk 0:02:44.3]} 16... O-O {[%clk
0:02:01.7]} 17. Rad1 {[%clk 0:02:44]} 17... f5 {[%clk 0:01:59.5]} 18. Nc3 {[%clk
0:02:39.7]} 18... fxe4 {[%clk 0:01:45.3]} 19. Nxe4 {[%clk 0:02:40.6]} 19... Bg4
{[%clk 0:01:29.4]} 20. Qxd6 {[%clk 0:02:27.1]} 20... Bxf3 {[%clk 0:01:21.8]} 21.
Qxd8 {[%clk 0:02:21.4]} 21... Rfxd8 {[%clk 0:01:20.7]} 22. Rxd8+ {[%clk
0:02:20.8]} 22... Rxd8 {[%clk 0:01:20.3]} 23. gxf3 {[%clk 0:02:21.7]} 23... Rd3
{[%clk 0:01:17.4]} 24. Nc5 {[%clk 0:02:19.5]} 24... Rd2 {[%clk 0:01:17.1]} 25.
Nxb7 {[%clk 0:02:13]} 25... Rxb2 {[%clk 0:01:16.5]} 26. Nc5 {[%clk 0:02:12.5]}
26... Bf4 {[%clk 0:00:38.8]} 27. Kg2 {[%clk 0:02:03.8]} 27... a5 {[%clk
0:00:34]} 28. Ra1 {[%clk 0:01:58.4]} 28... Be3 {[%clk 0:00:32.9]} 29. Ne4 {[%clk
0:01:54.1]} 29... Bb6 {[%clk 0:00:27.2]} 30. c5 {[%clk 0:01:53.5]} 30... Bc7
{[%clk 0:00:25.9]} 31. Rd1 {[%clk 0:01:51.7]} 31... h6 {[%clk 0:00:20.6]} 32.
Rd7 {[%clk 0:01:51.4]} 1-0

[Event "*** Titled Tuesday Blitz"]
[Site "Chess.com"]
[Date "2020.12.01"]
[Round "6"]
[White "chidori_boruto"]
[Black "ErikRonka"]
[Result "1-0"]
[WhiteElo "2662"]
[BlackElo "2373"]
[TimeControl "180+1"]
[EndTime "11:03:01 PST"]
[Termination "chidori_boruto won on time"]

1. c4 {[%clk 0:02:58.8]} 1... c6 {[%clk 0:02:56.8]} 2. Nf3 {[%clk 0:02:57.3]}
2... d5 {[%clk 0:02:54.9]} 3. g3 {[%clk 0:02:57.8]} 3... Nf6 {[%clk 0:02:51.8]}
4. Bg2 {[%clk 0:02:58]} 4... Bg4 {[%clk 0:02:45.6]} 5. O-O {[%clk 0:02:56.8]}
5... e6 {[%clk 0:02:42.6]} 6. d3 {[%clk 0:02:56.1]} 6... Bc5 {[%clk 0:02:39.2]}
7. cxd5 {[%clk 0:02:52.2]} 7... cxd5 {[%clk 0:02:37.5]} 8. Ne5 {[%clk
0:02:47.6]} 8... Bh5 {[%clk 0:02:26.8]} 9. Qa4+ {[%clk 0:02:46.2]} 9... Nbd7
{[%clk 0:02:24.2]} 10. Nc3 {[%clk 0:02:26.5]} 10... O-O {[%clk 0:02:22.2]} 11.
Bf4 {[%clk 0:02:24.7]} 11... d4 {[%clk 0:02:08.1]} 12. Nxd7 {[%clk 0:02:18.1]}
12... Nxd7 {[%clk 0:01:31]} 13. Bxb7 {[%clk 0:02:03]} 13... dxc3 {[%clk
0:00:41.3]} 14. Bxa8 {[%clk 0:02:00.1]} 14... cxb2 {[%clk 0:00:31.7]} 15. Rab1
{[%clk 0:01:59.4]} 15... Bxe2 {[%clk 0:00:27.7]} 16. Rfe1 {[%clk 0:01:57]} 16...
Bxd3 {[%clk 0:00:26.2]} 17. Rxb2 {[%clk 0:01:55.5]} 17... Nb6 {[%clk 0:00:19.1]}
18. Qa5 {[%clk 0:01:51.6]} 18... Bd4 {[%clk 0:00:13]} 19. Rd2 {[%clk 0:01:47.5]}
19... Qxa8 {[%clk 0:00:05.5]} 20. Rxd3 {[%clk 0:01:44.2]} 1-0

[Event "*** Titled Tuesday Blitz"]
[Site "Chess.com"]
[Date "2020.12.01"]
[Round "6"]
[White "djano"]
[Black "Kildepiotr"]
[Result "0-1"]
[WhiteElo "2454"]
[BlackElo "2632"]
[TimeControl "180+1"]
[EndTime "11:03:03 PST"]
[Termination "Kildepiotr won by resignation"]

1. d4 {[%clk 0:03:00.9]} 1... c5 {[%clk 0:02:59.4]} 2. c3 {[%clk 0:02:59.4]}
2... Nf6 {[%clk 0:02:59]} 3. Nf3 {[%clk 0:02:58.9]} 3... d5 {[%clk 0:02:59]} 4.
Bf4 {[%clk 0:02:56.1]} 4... Nbd7 {[%clk 0:02:52.4]} 5. e3 {[%clk 0:02:52]} 5...
e6 {[%clk 0:02:51.9]} 6. Nbd2 {[%clk 0:02:50.9]} 6... Be7 {[%clk 0:02:51]} 7.
Bd3 {[%clk 0:02:50.9]} 7... O-O {[%clk 0:02:50.6]} 8. Qe2 {[%clk 0:02:50.5]}
8... b6 {[%clk 0:02:50.5]} 9. h4 {[%clk 0:02:46]} 9... Bb7 {[%clk 0:02:49.4]}
10. Ne5 {[%clk 0:02:38.8]} 10... Nxe5 {[%clk 0:02:47.4]} 11. Bxe5 {[%clk
0:02:34.3]} 11... Nd7 {[%clk 0:02:47.1]} 12. Bxh7+ {[%clk 0:02:20.6]} 12... Kxh7
{[%clk 0:02:39.9]} 13. Qh5+ {[%clk 0:02:20.2]} 13... Kg8 {[%clk 0:02:40.3]} 14.
Bxg7 {[%clk 0:02:19.2]} 14... Kxg7 {[%clk 0:02:39.5]} 15. Rh3 {[%clk 0:02:16.4]}
15... Bd6 {[%clk 0:02:27.6]} 16. f4 {[%clk 0:02:07.6]} 16... Rg8 {[%clk
0:02:20.1]} 17. Nf3 {[%clk 0:01:44.7]} 17... Nf6 {[%clk 0:02:14]} 18. Rg3+
{[%clk 0:01:25.3]} 18... Kf8 {[%clk 0:02:13.8]} 19. Qh6+ {[%clk 0:01:14.9]}
19... Ke7 {[%clk 0:02:13.2]} 20. Ng5 {[%clk 0:00:47.1]} 20... Rg6 {[%clk
0:02:06.6]} 21. Nxf7 {[%clk 0:00:39]} 21... Rxh6 {[%clk 0:02:01.4]} 22. Nxd8
{[%clk 0:00:39.2]} 22... Kxd8 {[%clk 0:01:59.1]} 23. Rg7 {[%clk 0:00:37.8]}
23... Ba6 {[%clk 0:01:54.1]} 24. g4 {[%clk 0:00:36.7]} 24... Rxh4 {[%clk
0:01:51.9]} 25. O-O-O {[%clk 0:00:36.4]} 25... Rxg4 {[%clk 0:01:50.9]} 26. Rf7
{[%clk 0:00:35]} 26... Be7 {[%clk 0:01:43.1]} 27. Rh1 {[%clk 0:00:35]} 27... Kd7
{[%clk 0:01:42.6]} 28. Rh6 {[%clk 0:00:34.3]} 28... Ne4 {[%clk 0:01:37.3]} 29.
Rhh7 {[%clk 0:00:33.1]} 29... Re8 {[%clk 0:01:37.3]} 0-1

[Event "*** Titled Tuesday Blitz"]
[Site "Chess.com"]
[Date "2020.12.01"]
[Round "6"]
[White "gochatoria98"]
[Black "lelya96"]
[Result "1-0"]
[WhiteElo "2201"]
[BlackElo "2213"]
[TimeControl "180+1"]
[EndTime "11:03:05 PST"]
[Termination "gochatoria98 won by checkmate"]

1. e4 {[%clk 0:03:00.9]} 1... e5 {[%clk 0:02:59.2]} 2. Nf3 {[%clk 0:03:00.7]}
2... Nc6 {[%clk 0:02:58.4]} 3. Bc4 {[%clk 0:03:00.7]} 3... Nf6 {[%clk
0:02:57.5]} 4. d4 {[%clk 0:03:00.1]} 4... Nxe4 {[%clk 0:02:49.8]} 5. dxe5 {[%clk
0:02:57]} 5... Bc5 {[%clk 0:02:19.4]} 6. Qd5 {[%clk 0:02:51.9]} 6... Bxf2+
{[%clk 0:02:17.6]} 7. Kf1 {[%clk 0:02:48.4]} 7... O-O {[%clk 0:02:04.2]} 8. Qxe4
{[%clk 0:02:47.5]} 8... Bb6 {[%clk 0:02:03.2]} 9. Bd3 {[%clk 0:02:31]} 9... g6
{[%clk 0:01:56.7]} 10. Bg5 {[%clk 0:02:29.5]} 10... Qe8 {[%clk 0:01:53.3]} 11.
Bf6 {[%clk 0:02:29]} 11... Qe6 {[%clk 0:01:37.3]} 12. Qh4 {[%clk 0:02:18.5]}
12... h5 {[%clk 0:01:35.8]} 13. Qg5 {[%clk 0:01:43.5]} 13... Nxe5 {[%clk
0:01:12.5]} 14. Bxe5 {[%clk 0:01:33.7]} 14... d6 {[%clk 0:01:08.9]} 15. Bd4
{[%clk 0:01:18.3]} 15... Re8 {[%clk 0:00:53.9]} 16. Nc3 {[%clk 0:01:13.2]} 16...
c5 {[%clk 0:00:51.1]} 17. Bf6 {[%clk 0:01:07.9]} 17... c4 {[%clk 0:00:49]} 18.
Bxg6 {[%clk 0:01:03]} 18... Be3 {[%clk 0:00:48.6]} 19. Bh7+ {[%clk 0:00:52.5]}
19... Kxh7 {[%clk 0:00:47.9]} 20. Qg7# {[%clk 0:00:52.2]} 1-0

[Event "*** Titled Tuesday Blitz"]
[Site "Chess.com"]
[Date "2020.12.01"]
[Round "6"]
[White "AlexeiShirov"]
[Black "1977Ivan"]
[Result "1-0"]
[WhiteElo "2854"]
[BlackElo "2673"]
[TimeControl "180+1"]
[EndTime "11:03:09 PST"]
[Termination "AlexeiShirov won by resignation"]

1. e4 {[%clk 0:03:00.9]} 1... c5 {[%clk 0:02:59.3]} 2. Nf3 {[%clk 0:03:00.7]}
2... e6 {[%clk 0:02:58.1]} 3. d4 {[%clk 0:03:00.8]} 3... cxd4 {[%clk 0:02:59]}
4. Nxd4 {[%clk 0:03:00.8]} 4... Nc6 {[%clk 0:02:58.4]} 5. Nc3 {[%clk 0:03:00.3]}
5... Qc7 {[%clk 0:02:58.6]} 6. Be3 {[%clk 0:02:59.9]} 6... a6 {[%clk 0:02:57.9]}
7. Qf3 {[%clk 0:02:59.1]} 7... Ne5 {[%clk 0:02:54.8]} 8. Qh3 {[%clk 0:02:45.1]}
8... Nf6 {[%clk 0:02:31.8]} 9. f4 {[%clk 0:02:32.2]} 9... Ba3 {[%clk 0:02:18.6]}
10. fxe5 {[%clk 0:02:22.5]} 10... Bxb2 {[%clk 0:02:17]} 11. exf6 {[%clk
0:02:21.7]} 11... gxf6 {[%clk 0:01:32.8]} 12. Rd1 {[%clk 0:02:19.6]} 12... Bxc3+
{[%clk 0:01:31.5]} 13. Kf2 {[%clk 0:02:18.8]} 13... b5 {[%clk 0:01:31.2]} 14.
Qh6 {[%clk 0:02:14.1]} 14... Qe5 {[%clk 0:01:26]} 15. Nf3 {[%clk 0:02:05.3]}
15... Qxe4 {[%clk 0:01:11.5]} 16. Qg7 {[%clk 0:01:59.7]} 16... Qxc2+ {[%clk
0:00:51]} 17. Be2 {[%clk 0:01:44.7]} 17... Rf8 {[%clk 0:00:49.3]} 18. Rc1 {[%clk
0:01:42.4]} 18... Qb2 {[%clk 0:00:26.9]} 19. Bc5 {[%clk 0:01:29.8]} 19... d6
{[%clk 0:00:23.7]} 20. Bxd6 {[%clk 0:01:27.9]} 20... Bd4+ {[%clk 0:00:18.1]} 21.
Kg3 {[%clk 0:01:25.4]} 1-0

[Event "*** Titled Tuesday Blitz"]
[Site "Chess.com"]
[Date "2020.12.01"]
[Round "6"]
[White "MatyChess1"]
[Black "YIYUKI"]
[Result "1-0"]
[WhiteElo "2562"]
[BlackElo "2348"]
[TimeControl "180+1"]
[EndTime "11:03:11 PST"]
[Termination "MatyChess1 won by resignation"]

1. e4 {[%clk 0:03:00.9]} 1... c6 {[%clk 0:02:57.2]} 2. Nf3 {[%clk 0:03:00.4]}
2... d5 {[%clk 0:02:57]} 3. Nc3 {[%clk 0:03:01.3]} 3... Bg4 {[%clk 0:02:55.8]}
4. h3 {[%clk 0:03:01.3]} 4... Bxf3 {[%clk 0:02:56.1]} 5. Qxf3 {[%clk 0:03:02.2]}
5... e6 {[%clk 0:02:56]} 6. Be2 {[%clk 0:03:02.2]} 6... g6 {[%clk 0:02:56.3]} 7.
O-O {[%clk 0:02:50.6]} 7... Bg7 {[%clk 0:02:56.3]} 8. Rd1 {[%clk 0:02:51.1]}
8... Nd7 {[%clk 0:02:55.7]} 9. d4 {[%clk 0:02:51.1]} 9... Ne7 {[%clk 0:02:49.8]}
10. Bf4 {[%clk 0:02:47.5]} 10... O-O {[%clk 0:02:46.6]} 11. a4 {[%clk
0:02:42.6]} 11... f5 {[%clk 0:02:42.1]} 12. e5 {[%clk 0:02:37.6]} 12... h6
{[%clk 0:02:39]} 13. h4 {[%clk 0:02:36.1]} 13... a5 {[%clk 0:02:35]} 14. Qe3
{[%clk 0:02:23.8]} 14... Kh7 {[%clk 0:02:33.8]} 15. Bd3 {[%clk 0:02:24.3]} 15...
Rg8 {[%clk 0:02:09.9]} 16. Ne2 {[%clk 0:02:21.5]} 16... g5 {[%clk 0:02:05.6]}
17. hxg5 {[%clk 0:02:14.6]} 17... Ng6 {[%clk 0:02:05.7]} 18. gxh6 {[%clk
0:00:54.9]} 18... Nxf4 {[%clk 0:02:05]} 19. Nxf4 {[%clk 0:00:55.3]} 19... Bxh6
{[%clk 0:02:03.9]} 20. Nxe6 {[%clk 0:00:54.1]} 20... Qh4 {[%clk 0:01:49.9]} 21.
Bxf5+ {[%clk 0:00:48.2]} 21... Kh8 {[%clk 0:01:50]} 22. Qh3 {[%clk 0:00:46.4]}
22... Qxh3 {[%clk 0:01:12.4]} 23. Bxh3 {[%clk 0:00:46.4]} 23... Rae8 {[%clk
0:01:10.8]} 24. Rd3 {[%clk 0:00:34.2]} 1-0